Cogmind - Beta 13 @@@ ROGUE MODE // 2024.04.02 @ 19:34:10 Player: Oldman Pu Result: Destroyed by Y-45 Defender with Heavy Assault Rifle Performance ------------- Evolutions (1) 500 Regions Visited (3) 600 Robots Destroyed (101) 505 Value Destroyed (2298) 2298 Prototype IDs (5) 100 Alien Tech Used (0) 0 Bonus (160) 160 TOTAL SCORE: 4163 Bonus ------- High Alert Combat Kills 160 Cogmind --------- Core Integrity 0/400 Matter 300/300 Energy 280/280 System Corruption 10% Temperature Cool (35) Movement Rolling (105) Ox1 Location -9/Storage Parts ------- > --- POWER (1) -------- Heavy Ion Engine > --- PROPULSION (3) --- Armored Wheel Armored Wheel Armored Wheel > --- UTILITY (3) ------ Improved Heat Sink High-capacity Storage Unit Core Shielding > --- WEAPON (2) ------- Improved Medium Laser Improved Medium Laser > --- INVENTORY (20) --- Cooled Ion Engine Cooled Ion Engine Armored Wheel Armored Wheel Cryofiber Web Cryofiber Web High-capacity Matter Pod (200) Improved Targeting Computer Core Shielding Core Shielding Medium Armor Plating Hardened Light Armor Plating Improved Medium Laser Improved Medium Laser Advanced Beam Cannon Advanced Beam Cannon Advanced Beam Cannon Advanced Beam Cannon Heavy Assault Rifle Heavy Assault Rifle Peak State ------------ > --- POWER ------------ Cooled Ion Engine > --- PROPULSION ------- Armored Treads Armored Treads Armored Treads > --- UTILITY ---------- Improved Heat Sink High-capacity Storage Unit Core Shielding > --- WEAPON ----------- Improved Medium Laser Improved Medium Laser > --- INVENTORY -------- Reinforced Ion Engine Cooled Ion Engine Cooled Ion Engine Armored Wheel Cryofiber Web Cryofiber Web Improved Heat Sink High-capacity Matter Pod Improved Targeting Computer Core Shielding Core Shielding Medium Armor Plating Hardened Light Armor Plating Improved Medium Laser Improved Medium Laser Particle Cannon Advanced Beam Cannon Heavy Assault Rifle Heavy Assault Rifle Improved Light Cannon [Rating: 27] Favorites ----------- Power Cooled Ion Engine Engine Cooled Ion Engine Propulsion Wheel Treads Armored Treads Wheel Wheel Utility High-capacity Storage Unit Device Improved Heat Sink Storage High-capacity Storage Unit Protection Core Shielding Weapon Improved Medium Laser Energy Gun Improved Medium Laser Energy Cannon Beam Cannon Ballistic Gun Light Assault Rifle Build | -11 -10 -9 -9 ------- Run | Yrd Mat Mat Sto Slots Evolved 2 | . . 2 . Power . | . . . . Propulsion 1 | . . 1 . Utility 1 | . . 1 . Weapon . | . . . . Parts Attached 71 | 6 9 46 10 Power 10 | 1 3 4 2 Engine 10 | 1 3 4 2 Core . | . . . . Reactor . | . . . . Propulsion 35 | 2 2 26 5 Treads 3 | . . 3 . Leg . | . . . . Wheel 32 | 2 2 23 5 Hover . | . . . . Flight . | . . . . Utility 11 | 1 2 7 1 Device 4 | . . 3 1 Storage 2 | 1 1 . . Processor . | . . . . Hackware . | . . . . Protection 5 | . 1 4 . Artifact . | . . . . Weapon 15 | 2 2 9 2 Energy Gun 8 | 1 . 5 2 Energy Cannon 5 | . 1 4 . Ballistic Gun 2 | 1 1 . . Ballistic Cannon . | . . . . Launcher . | . . . . Special Weapon . | . . . . Impact Weapon . | . . . . Slashing Weapon . | . . . . Piercing Weapon . | . . . . Special Melee Weapon . | . . . . Unidentified Prototypes 5 | . . 4 1 Parts Lost 16 | . 5 11 . Power 1 | . 1 . . Propulsion 10 | . 2 8 . Utility 1 | . . 1 . Weapon 4 | . 2 2 . Highest Loss Streak 4 | . 3 4 . To Critical Strikes 1 | . . 1 . Average Slot Usage (%) 93 | . 92 93 96 Engine 11 | . 13 11 11 Wheel 26 | . 22 28 30 Device 7 | . . 11 11 Storage 12 | . 15 11 11 Protection 11 | . 12 10 11 Energy Gun 14 | . 6 16 20 Energy Cannon 4 | . 7 3 . Ballistic Gun 4 | . 13 . . Naked Turns . | . . . . Heaviest Build 58 | 13 53 58 56 Greatest Support 60 | 32 32 60 40 Greatest Overweight (x) 5 | 4 4 5 1 Average Overweight (x) 1 | . 1 1 1 Largest Inventory Capacity 20 | 8 20 20 20 Average Capacity 19 | 6 19 20 20 Most Carried 20 | . 9 20 20 Average Carried 14 | . 5 18 19 Final Capacity 20 | 8 20 20 20 Final Carried 20 | . 8 19 20 Class Distribution -------------------- 72% | Mutant 27% | Scavenger-Mutant Dominant Class ---------------- Mutant | -10/Materials Mutant | -9/Materials Mutant | -9/Storage Resources | -11 -10 -9 -9 ----------- Run | Yrd Mat Mat Sto Matter Collected 1235 | 247 326 527 135 Remotely . | . . . . Salvage Created 3725 | . 668 2460 597 Parts 226 | . 41 143 42 Haulers Intercepted 10 | . 1 6 3 Recyclers Shooed 1 | . 1 . . Parts Field Recycled . | . . . . Retrieved Matter . | . . . . Parts Self-Destructed . | . . . . Prevented . | . . . . Kills | -11 -10 -9 -9 ------- Run | Yrd Mat Mat Sto Combat Hostiles Destroyed 60 | . 12 39 9 Guns 43 | . 6 28 9 Cannons 11 | . 6 5 . Classes Destroyed 12 | . 6 6 . Worker 12 | . 3 7 2 Builder 3 | . . 2 1 Tunneler 1 | . . 1 . Hauler 10 | . 1 6 3 Recycler 4 | . 1 3 . Operator 2 | . . 2 . Watcher 9 | . 3 5 1 Swarmer 11 | . 3 8 . Grunt 34 | . 9 18 7 Brawler 3 | . . 3 . Duelist 1 | . . 1 . Sentry 11 | . . 9 2 Best Kill Streak 6 | . 5 6 4 Combat Bots Only 4 | . 3 4 3 Max Kills in Single Turn 2 | . 2 1 1 Gunslinging . | . . . . Exploded . | . . . . Melee . | . . . . Uniques/NPCs Destroyed . | . . . . Combat | -11 -10 -9 -9 -------- Run | Yrd Mat Mat Sto Hostile Shots Fired 278 | . 72 170 36 Missed 76 | . 21 48 7 Damage Taken 2576 | . 608 1583 385 Core 525 | . 117 352 56 Absorbed by Shields . | . . . . Redirected to Shielding 105 | . 24 71 10 Regen/Repaired (Parts) 159 | . . 91 68 Core Remaining (%) 76 | 100 53 . . Volleys Fired 271 | . 79 153 39 Largest 2 | . 2 2 2 Hottest 136 | . 80 136 112 Shots Fired 533 | . 152 302 79 Gun 428 | . 103 246 79 Cannon 105 | . 49 56 . Launcher . | . . . . Special . | . . . . Kinetic 89 | . 74 15 . Thermal 444 | . 78 287 79 Explosive . | . . . . Electromagnetic . | . . . . Robot Hit Streak 14 | . 10 14 13 Robot Miss Streak 5 | . 4 5 2 Penetration Max . | . . . . Secondary Targets 4 | . 1 3 . Max Gunslinging Chain 1 | . 1 1 . Shots Hit Robots 323 | . 93 177 53 Core Hits 124 | . 33 72 19 Critical Kills 1 | . . 1 . Critical Parts Destroyed 1 | . 1 . . Critical Strikes 22 | . 3 16 3 Burn 20 | . 2 15 3 Meltdown 1 | . . 1 . Destroy 1 | . 1 . . Melee Attacks . | . . . . Impact . | . . . . Slashing . | . . . . Piercing . | . . . . Sneak Attacks . | . . . . Combat Hostiles . | . . . . Follow-up Attacks . | . . . . Damage Inflicted 5356 | . 1318 3115 923 Guns 3984 | . 552 2509 923 Cannons 1219 | . 613 606 . Explosions 153 | . 153 . . Melee . | . . . . Ramming . | . . . . Kinetic 380 | . 325 55 . Thermal 4823 | . 840 3060 923 Explosive 153 | . 153 . . Electromagnetic . | . . . . Impact . | . . . . Slashing . | . . . . Piercing . | . . . . Highest Corruption 10 | . . 10 10 Average Corruption 5 | . . 4 10 Corruption Purged . | . . . . Corruption Blocked . | . . . . Effects 52 | . . 31 21 Message Errors 9 | . . 7 2 Matter Fused 11 | . . 6 5 Heat Flow Errors 6 | . . 3 3 Energy Discharges 6 | . . 2 4 Parts Rejected 2 | . . 2 . Data Loss (minor) 6 | . . 4 2 Data Loss (major) 1 | . . . 1 Misfires 3 | . . 1 2 Alerts 4 | . . 3 1 Weapon Failures 4 | . . 3 1 Overload Shots . | . . . . Overflow Damage 56 | . 56 . . Projectiles . | . . . . Explosions 56 | . 56 . . Melee . | . . . . Knockbacks . | . . . . Impact . | . . . . Kinetic . | . . . . Secondary . | . . . . Self-Inflicted Damage . | . . . . Shots . | . . . . Rammed . | . . . . Targets Rammed . | . . . . Kicked . | . . . . Crushed . | . . . . Highest Temperature 349 | . 349 284 266 Average Temperature 55 | . 81 29 48 Received Heat Transfer 996 | . 294 507 195 Effects 1 | . 1 . . Energy Bleed 1 | . 1 . . Siege Activations . | . . . . Robots Corrupted . | . . . . Combat Hostiles . | . . . . Parts Fried . | . . . . Impact Corruptions . | . . . . Robots Melted 6 | . . 6 . Combat Hostiles 6 | . . 6 . Parts Melted 36 | . 3 29 4 Heat Transferred 11738 | . 2109 7372 2257 Parts Sabotaged . | . . . . Parts Stolen . | . . . . Parts Stripped . | . . . . Power Chain Reactions . | . . . . Alert | -11 -10 -9 -9 ------- Run | Yrd Mat Mat Sto Peak Influence 602 | . 199 602 472 Initial 227 | . . 42 227 Average 292 | . 93 384 348 Maximum Alert Level 2 | . . 2 2 Low Security (%) 37 | 100 100 13 . Level 1 28 | . . 34 70 Level 2 33 | . . 52 29 Level 3 . | . . . . Level 4 . | . . . . Level 5 . | . . . . High Security . | . . . . Max Security . | . . . . Squads Dispatched 9 | . 3 4 2 Investigation 5 | . 2 2 1 Extermination . | . . . . Reinforcement 3 | . 1 1 1 Assault 1 | . . 1 . Garrison . | . . . . Intercept . | . . . . Searches Triggered . | . . . . Construction Impeded . | . . . . Haulers Reinforced . | . . . . Active Scanning Responses . | . . . . Cargo Convoy Interrupts . | . . . . Stealth | -11 -10 -9 -9 --------- Run | Yrd Mat Mat Sto Distress Signals 4 | . 1 3 . Communications Jammed . | . . . . Distress Signals . | . . . . Times Spotted 82 | . 19 52 11 Peak Tracking Total 6 | . 5 6 3 Tactical Retreats 6 | . 3 3 . Traps | -11 -10 -9 -9 ------- Run | Yrd Mat Mat Sto Traps Triggered 3 | . 2 1 . Indirectly . | . . . . Trap Hack Attempts . | . . . . Triggered . | . . . . Disarmed . | . . . . Reprogrammed . | . . . . Reused . | . . . . Traps Extracted . | . . . . Installed . | . . . . Triggered . | . . . . Machines | -11 -10 -9 -9 ---------- Run | Yrd Mat Mat Sto Machines Disabled 6 | . 3 3 . Max in Single Turn 2 | . 2 1 . Machines Repaired . | . . . . Machines Dismantled . | . . . . Machines Sabotaged . | . . . . Overloaded Fab Kills . | . . . . Hacking | -11 -10 -9 -9 --------- Run | Yrd Mat Mat Sto Machines Accessed 23 | . 3 15 5 Terminals 16 | . 3 9 4 Fabricators . | . . . . Repair Stations 3 | . . 2 1 Recycling Units 2 | . . 2 . Scanalyzers 2 | . . 2 . Garrison Access . | . . . . Total Hacks 79 | . 11 56 12 Successful 50 | . 6 38 6 Failed 29 | . 5 18 6 Catastrophic 4 | . 1 2 1 Database Lockouts . | . . . . Manual . | . . . . Terminals 48 | . 11 30 7 Fabricators . | . . . . Repair Stations 11 | . . 6 5 Recycling Units 6 | . . 6 . Scanalyzers 14 | . . 14 . Garrison Access . | . . . . Terminal Hacks 28 | . 6 18 4 Record 11 | . 3 8 . Open Door 2 | . . . 2 Branch Access Points 2 | . . 1 1 Emergency Access Points 3 | . . 3 . Alert Level 1 | . . 1 . Unreport Threat 1 | . . 1 . Locate Traps 3 | . . 2 1 Dispatch Records 2 | . 1 1 . Maintenance Status 1 | . 1 . . Investigation Status 1 | . . 1 . Registered Components 1 | . 1 . . Fabricator Hacks . | . . . . Repair Station Hacks 6 | . . 4 2 Scan Component 3 | . . 2 1 Repair 3 | . . 2 1 Recycling Unit Hacks 3 | . . 3 . Report Inventory 2 | . . 2 . Retrieve Components 1 | . . 1 . Scanalyzer 13 | . . 13 . Insert Component 6 | . . 6 . Analyze 7 | . . 7 . Garrison Access Hacks . | . . . . Unauthorized Hacks . | . . . . Terminals . | . . . . Fabricators . | . . . . Repair Stations . | . . . . Recycling Units . | . . . . Scanalyzers . | . . . . Garrison Access . | . . . . Data Cores Recovered 1 | . . 1 . Used . | . . . . Hacking Detections 21 | . 3 13 5 Full Trace Events 3 | . 1 1 1 Feedback Events . | . . . . Feedback Blocked . | . . . . Robot Schematics Acquired . | . . . . Robots Built . | . . . . Authchips . | . . . . Time . | . . . . Total Robot Build Rating . | . . . . Part Schematics Acquired 6 | . . 6 . Parts Built . | . . . . Authchips . | . . . . Time . | . . . . Total Part Build Rating . | . . . . Parts Repaired 3 | . . 2 1 Time 109 | . . 77 32 Parts Recycled . | . . . . Recycled Matter . | . . . . Retrieved Matter . | . . . . Retrieved Components 3 | . . 3 . Parts Scanalyzed 6 | . . 6 . Part Schematics Acquired 6 | . . 6 . Parts Damaged . | . . . . Bothacking | -11 -10 -9 -9 ------------ Run | Yrd Mat Mat Sto Used RIF Installer . | . . . . Robots Hacked . | . . . . Non-combat . | . . . . Combat . | . . . . Robot Hacks Applied . | . . . . Relay Couplers Released . | . . . . Fabnet Peak Effective % . | . . . . Robots Rewired . | . . . . Allies Hacked . | . . . . Hacks Repelled . | . . . . Allies | -11 -10 -9 -9 -------- Run | Yrd Mat Mat Sto Total Allies . | . . . . Largest Group . | . . . . Highest-Rated Group . | . . . . Highest-Rated Ally . | . . . . Total Orders . | . . . . Ally Attacks . | . . . . Total Damage . | . . . . Kills . | . . . . Allies Corrupted . | . . . . Allies Melted . | . . . . Intel | -11 -10 -9 -9 ------- Run | Yrd Mat Mat Sto Robot Analysis Total . | . . . . Derelict Logs Recovered . | . . . . Drone Launches . | . . . . Drone Recoveries . | . . . . Exploration | -11 -10 -9 -9 ------------- Run | Yrd Mat Mat Sto Turns Passed 3711 | 41 1060 2111 499 Spaces Moved 2275 | 35 677 1274 289 Core 15 | 15 . . . Treads 2 | . . 2 . Legs . | . . . . Wheels 2258 | 20 677 1272 289 Hover . | . . . . Flight . | . . . . Fastest Speed 50 | 50 100 95 105 Average Speed 110 | 92 117 107 106 Slowest Speed 250 | 250 145 250 110 Overloaded Moves . | . . . . Propulsion Burnouts . | . . . . Robots Hopped . | . . . . Cave-ins Triggered . | . . . . Exploration Rate (%) 61 | 4 98 98 47 Regions Visited 3 Branch Regions 1 Pre-discovered Areas . | . . . . Known Exits Taken 1 | . . 1 . Unknown Exits Taken 2 | 1 1 . . Scrap Searched . | . . . . Spaces Dug . | . . . . Terrain Destroyed 8 | . 8 . . Melee . | . . . . Projectile . | . . . . AOE 8 | . 8 . . Terrain Rammed . | . . . . Walls Destroyed . | . . . . Machines Disabled . | . . . . Actions | -11 -10 -9 -9 --------- Run | Yrd Mat Mat Sto Total 2974 | 40 802 1723 409 Wait 256 | . 28 178 50 Move 2272 | 34 676 1273 289 Hop . | . . . . Pick Up 54 | . 9 36 9 Fast Attach 23 | 6 4 11 2 Attach 12 | . 3 8 1 Detach 1 | . . . 1 Swap 36 | . 2 27 7 Drop 49 | . 1 37 11 Fire 271 | . 79 153 39 Melee . | . . . . Ram . | . . . . Kick . | . . . . Crush . | . . . . Escape Stasis . | . . . . Rewire . | . . . . Trap . | . . . . Miscellaneous . | . . . . Route ------- -11/Scrapyard -10/Materials (discovered 4 exits: *Mat x3 / [*Min]) -9/Materials (discovered 7 exits: [*Mat x3] / *Min x2 / *Sto x2) -9/Storage (discovered 1 exit: Rec) History --------- Turn | Location | Event 25 | -11/Scrapyard | Discovered new exit (range 12) 42 | -11/Scrapyard | Entered Materials 103 | -10/Materials | Discovered new exit (range 13) 313 | -10/Materials | Build established: Mutant 597 | -10/Materials | Lost 3 parts (1p2w) 788 | -10/Materials | Discovered new exit (range 8) 910 | -10/Materials | Discovered new exit (range 16) 1077 | -10/Materials | Discovered new exit (range 16) 1102 | -10/Materials | Entered another Materials area 1102 | -9/Materials | Evolved 2 slots: Propulsion x1, Utility x1 1377 | -9/Materials | Discovered new exit (range 6) 1795 | -9/Materials | Discovered new exit (range 7) 1851 | -9/Materials | Discovered new exit (range 16) 1936 | -9/Materials | Repaired Core Shielding 1989 | -9/Materials | Repaired Imp. Medium Laser 2087 | -9/Materials | Identified exit to Mines 2087 | -9/Materials | Identified exit to Storage 2120 | -9/Materials | Build established: Scavenger-Mutant 2229 | -9/Materials | Core integrity fell below 50% 2507 | -9/Materials | Discovered new exit (range 4) 2702 | -9/Materials | First assault squad dispatched 2792 | -9/Materials | System corruption reached 10% 2797 | -9/Materials | Core integrity fell below 20% 2822 | -9/Materials | Lost 4 parts (2n1u1w) 2928 | -9/Materials | Build established: Mutant 3133 | -9/Materials | Discovered new exit (range 15) 3213 | -9/Materials | Entered Storage 3261 | -9/Storage | Repaired Arm. Wheel 3647 | -9/Storage | Identified exit to Recycling 3712 | -9/Storage | Destroyed by Y-45 Defender with Heavy Assault Rifle Last Messages --------------- 03647_ Connecting with Terminal... >>Access(Branch) Found 1 branch access point: (68,13) Recycling Map updated. 03651_ K-01 Serf destroyed. 03654_ System corrupted: Energy discharge (-100). 03656_ Critical hit (Burn: +37). 03657_ System corrupted: Imp. Medium Laser failed to cycle. 03659_ Critical hit (Burn: +37). 03660_ Y-45 Defender destroyed. 03671_ Connecting with Terminal... >>Traps(Locate) Found 4 traps in 1 array: 4x EMP Trap Map updated. 03674_ R-06 Scavenger collects Wheel. 03689_ A-02 Transporter destroyed. 03695_ System corrupted: Substantial component data lost. 03707_ Y-45 Defender suffers critical hit (Burn). Map ----- +----------------------------------------------------+ | | | | | ???????????????????????????????????????????? | | ???????????????????????????????????????????? | | ????????????????????????????????????###????? | | ??????????########???################!###### | | ??????????# ]= #???# + ##%[ # | | ??????????# ]= #???# ###### ##% # | | ?????????## = #???# #???## ## " # | | ?????????# #???# ##### # T # | | ??????????# #???# # T + " # | | ??#####???# #???# # ### # | # | | ??#! !#??#####+########+##+## #?############ | | ??#! !#??# ^ #????????????? | | ???! !#### % ^% ########????????? | | ???! !##"" %% ^![#! #??>?????? | | ?### ###"T % |% ^]]+* "T" #????????? | | ?#T ##"" % #####%# #????????? | | ?###+##### % #???#]# #????????? | | ??# #???#[########????????? | | ### #"Y"# #??##+##########??????? | | #"""# #??# #??????? | | ### ##### #### +??????? | | ??# ##+##+##### ##"" ] #??????? | | ??# # # ##"T #??????? | | ??# # + ##""@ """ """ #??????? | | ??# # #########Y """ """ #??????? | | ??# # #??????? """ """ #??????? | | ??# ###########???????######+###?????????? | | ??# # #???????????????????????????? | | ??# # """#???????????????????????????? | | ??# # """#???????????????????????????? | | ??# # """#???????????????????????????? | | ??# + #???????????????????????????? | | ??# # """#???????????????????????????? | | ??# # """#???????????????????????????? | | ??# # """#???????????????????????????? | | ??# # #???????????????????????????? | | ??# ##########???????????????????????????? | | ??#####????????????????????????????????????? | | ???????????????????????????????????????????? | | ???????????????????????????????????????????? | | ???????????????????????????????????????????? | | ???????????????????????????????????????????? | | ???????????????????????????????????????????? | | ???????????????????????????????????????????? | | ???????????????????????????????????????????? | | ???????????????????????????????????????????? | | ???????????????????????????????????????????? | | ???????????????????????????????????????????? | +----------------------------------------------------+ Best States ------------- Heat Dissipation 42 Energy Generation 14 Energy Capacity 280 Matter Stores 300 Matter Capacity 300 Sight Range 16 Terrain Scan Density 10 Core Shielding 20 Evasion (%) 50 Recoil Reduction 2 Item Schematics ----------------- Arm. Wheel | -9/Materials | Scanalyzed Core Shielding | -9/Materials | Scanalyzed Imp. Medium Laser | -9/Materials | Scanalyzed Imp. Targeting Computer | -9/Materials | Scanalyzed Adv. Beam Cannon | -9/Materials | Scanalyzed Hrd. Light Armor Plating | -9/Materials | Scanalyzed Robot Schematics ------------------ None Fabricated ------------ Nothing Alien Tech Used ----------------- None Achievements -------------- None Challenges ------------ None Game ------ Seed CoolantDiametricMegatreads Manual? 0 Play Time 00:42:27 Cumulative 212.9 hours Start 2024.04.02 @ 18:53:03 End 2024.04.02 @ 19:34:10 Sessions 1 Manual Loads 0 Difficulty Rogue Special Mode None Game No. 166 Rogue 154 Adventurer 12 Explorer 0 Win Type - Total 1 Types 1/0/0/0/0/0/0/0/0 Lore% 28 Gallery% 44 Achievement% 32 Wizard Run 0 Options --------- Layout 1 ASCII 0 Keyboard 0 Movement Mouse Keybinds 0 Fullscreen 1 Font 32/SmallcapsGlow Map View 77x35 Zoom Use 0% Tactical HUD 1 Map Filters NONE Filters NONE Steam 1 RUN: 713e4bba-e5a2-47d9-872d-594146ef17ce